[Event "Titled Tuesday Blitz December 14 2021"]
[White "Suarez Uriel, Adrian"]
[Black "Samadov, Read"]
[WhiteFideId "22230874"]
[BlackFideId "13417444"]
[WhiteElo "2316"]
[BlackElo "2084"]
[Result "0-1"]
[Round "04"]
[TimeControl "180+1"]
[Date "2021.12.15"]
[WhiteClock "0:00:02"]
[BlackClock "0:00:12"]

1. e4 {[%clk 0:03:00]}  c5 {[%clk 0:02:59]} 2. Ne2 {[%clk 0:03:00]}  d6 {[%clk 0:02:58]} 3. g3 {[%clk 0:03:00]}  Nf6 {[%clk 0:02:57]} 4. Bg2 {[%clk 0:03:01]}  Nc6 {[%clk 0:02:53]} 5. c3 {[%clk 0:03:01]}  g6 {[%clk 0:02:15]} 6. d4 {[%clk 0:02:59]}  cxd4 {[%clk 0:02:15]} 7. cxd4 {[%clk 0:03:00]}  Bg7 {[%clk 0:02:02]} 8. Nbc3 {[%clk 0:02:54]}  O-O {[%clk 0:02:03]} 9. O-O {[%clk 0:02:52]}  Rb8 {[%clk 0:02:00]} 10. h3 {[%clk 0:02:50]}  h5 {[%clk 0:01:51]} 11. Be3 {[%clk 0:02:49]}  a6 {[%clk 0:01:51]} 12. Rc1 {[%clk 0:02:46]}  Bd7 {[%clk 0:01:51]} 13. f4 {[%clk 0:02:45]}  e6 {[%clk 0:01:45]} 14. e5 {[%clk 0:02:45]}  Ne8 {[%clk 0:01:43]} 15. Ne4 {[%clk 0:02:44]}  Ne7 {[%clk 0:01:40]} 16. N2c3 {[%clk 0:02:25]}  Bc6 {[%clk 0:01:36]} 17. Bf2 {[%clk 0:02:21]}  b5 {[%clk 0:01:34]} 18. a3 {[%clk 0:02:17]}  Bb7 {[%clk 0:01:32]} 19. Qd2 {[%clk 0:02:14]}  Nd5 {[%clk 0:01:22]} 20. Nxd5 {[%clk 0:02:12]}  Bxd5 {[%clk 0:01:23]} 21. Rc3 {[%clk 0:01:53]}  b4 {[%clk 0:01:18]} 22. axb4 {[%clk 0:01:50]}  Rxb4 {[%clk 0:01:18]} 23. Rfc1 {[%clk 0:01:51]}  dxe5 {[%clk 0:01:16]} 24. dxe5 {[%clk 0:01:46]}  Qa5 {[%clk 0:00:56]} 25. Rc5 {[%clk 0:01:24]}  Qa4 {[%clk 0:00:34]} 26. Nc3 {[%clk 0:01:24]}  Qb3 {[%clk 0:00:32]} 27. Nxd5 {[%clk 0:01:24]}  exd5 {[%clk 0:00:32]} 28. Bxd5 {[%clk 0:01:24]}  Qxb2 {[%clk 0:00:32]} 29. Qxb2 {[%clk 0:01:22]}  Rxb2 {[%clk 0:00:32]} 30. Rc8 {[%clk 0:01:19]}  Rd2 {[%clk 0:00:31]} 31. Bc6 {[%clk 0:01:09]}  Nf6 {[%clk 0:00:27]} 32. Rxf8+ {[%clk 0:01:06]}  Kxf8 {[%clk 0:00:27]} 33. exf6 {[%clk 0:01:06]}  Bxf6 {[%clk 0:00:28]} 34. Bb7 {[%clk 0:00:46]}  a5 {[%clk 0:00:28]} 35. Rc7 {[%clk 0:00:44]}  a4 {[%clk 0:00:25]} 36. Bc6 {[%clk 0:00:40]}  Rc2 {[%clk 0:00:20]} 37. Rc8+ {[%clk 0:00:39]}  Kg7 {[%clk 0:00:21]} 38. g4 {[%clk 0:00:14]}  hxg4 {[%clk 0:00:20]} 39. hxg4 {[%clk 0:00:15]}  a3 {[%clk 0:00:20]} 40. g5 {[%clk 0:00:16]}  Bb2 {[%clk 0:00:15]} 41. Ra8 {[%clk 0:00:07]}  Rxc6 {[%clk 0:00:14]} 42. Kg2 {[%clk 0:00:06]}  Rc2 {[%clk 0:00:14]} 43. Kf3 {[%clk 0:00:06]}  Rc3+ {[%clk 0:00:13]} 44. Ke4 {[%clk 0:00:05]}  Rc4+ {[%clk 0:00:13]} 45. Kf3 {[%clk 0:00:04]}  Bc1 {[%clk 0:00:12]} 46. Bd4+ {[%clk 0:00:02]}  Rxd4 {[%clk 0:00:12]} 0-1


[Site "https://www.chess.com"]

[Event "Titled Tuesday Blitz December 14 2021"]
[White "Sviridov, Valery"]
[Black "Grigorjev, Iljya"]
[WhiteFideId "4120680"]
[BlackFideId "24159565"]
[WhiteElo "2985"]
[BlackElo "2808"]
[Result "1-0"]
[Round "04"]
[TimeControl "180+1"]
[Date "2021.12.14"]
[WhiteClock "0:01:24"]
[BlackClock "0:01:05"]

1. Nf3 {[%clk 0:03:00]}  Nf6 {[%clk 0:03:00]} 2. g3 {[%clk 0:03:00]}  g6 {[%clk 0:03:00]} 3. Bg2 {[%clk 0:03:01]}  Bg7 {[%clk 0:03:01]} 4. O-O {[%clk 0:03:01]}  O-O {[%clk 0:03:01]} 5. c4 {[%clk 0:03:00]}  c6 {[%clk 0:03:01]} 6. Nc3 {[%clk 0:02:59]}  d5 {[%clk 0:03:01]} 7. cxd5 {[%clk 0:03:00]}  cxd5 {[%clk 0:03:01]} 8. d4 {[%clk 0:03:01]}  Ne4 {[%clk 0:02:58]} 9. Ng5 {[%clk 0:03:00]}  Nxc3 {[%clk 0:02:48]} 10. bxc3 {[%clk 0:03:01]}  h6 {[%clk 0:02:36]} 11. Nh3 {[%clk 0:03:01]}  Nc6 {[%clk 0:02:37]} 12. Nf4 {[%clk 0:03:00]}  e6 {[%clk 0:02:37]} 13. e4 {[%clk 0:02:59]}  dxe4 {[%clk 0:02:34]} 14. Bxe4 {[%clk 0:03:00]}  Rb8 {[%clk 0:02:25]} 15. Re1 {[%clk 0:02:54]}  Qa5 {[%clk 0:02:18]} 16. Bd2 {[%clk 0:02:51]}  Rd8 {[%clk 0:02:18]} 17. Nd3 {[%clk 0:02:41]}  Bd7 {[%clk 0:02:11]} 18. h4 {[%clk 0:02:40]}  Be8 {[%clk 0:02:07]} 19. Qc1 {[%clk 0:02:37]}  h5 {[%clk 0:02:02]} 20. Bg5 {[%clk 0:02:17]}  Rdc8 {[%clk 0:02:01]} 21. Qd2 {[%clk 0:02:02]}  Qa3 {[%clk 0:01:52]} 22. Rab1 {[%clk 0:01:59]}  Na5 {[%clk 0:01:52]} 23. Bf4 {[%clk 0:01:56]}  Ra8 {[%clk 0:01:47]} 24. Nc5 {[%clk 0:01:56]}  Bc6 {[%clk 0:01:32]} 25. Bd3 {[%clk 0:01:48]}  b6 {[%clk 0:01:28]} 26. Nxe6 {[%clk 0:01:48]}  fxe6 {[%clk 0:01:22]} 27. Rxe6 {[%clk 0:01:49]}  Be8 {[%clk 0:01:15]} 28. Bxg6 {[%clk 0:01:37]}  Bxg6 {[%clk 0:01:15]} 29. Rxg6 {[%clk 0:01:38]}  Qxc3 {[%clk 0:01:13]} 30. Qxc3 {[%clk 0:01:38]}  Rxc3 {[%clk 0:01:13]} 31. Be5 {[%clk 0:01:38]}  Kf7 {[%clk 0:01:11]} 32. Rxg7+ {[%clk 0:01:38]}  Ke6 {[%clk 0:01:12]} 33. Rg5 {[%clk 0:01:34]}  Rc2 {[%clk 0:01:09]} 34. Ra1 {[%clk 0:01:27]}  Rf8 {[%clk 0:01:04]} 35. Bf4 {[%clk 0:01:27]}  Rf5 {[%clk 0:01:05]} 36. Re1+ {[%clk 0:01:24]} 1-0


[Site "https://www.chess.com"]

[Event "Titled Tuesday Blitz December 14 2021"]
[White "Sychev, Klementy"]
[Black "Stanojevic, Ilija"]
[WhiteFideId "4114060"]
[BlackFideId "959995"]
[WhiteElo "2615"]
[BlackElo "2154"]
[Result "0-1"]
[Round "04"]
[TimeControl "180+1"]
[Date "2021.12.14"]
[WhiteClock "0:00:02"]
[BlackClock "0:00:50"]

1. e4 {[%clk 0:03:00]}  e6 {[%clk 0:02:59]} 2. Qe2 {[%clk 0:03:00]}  c5 {[%clk 0:02:55]} 3. Nf3 {[%clk 0:02:58]}  Nc6 {[%clk 0:02:52]} 4. g3 {[%clk 0:02:58]}  g6 {[%clk 0:02:49]} 5. Bg2 {[%clk 0:02:57]}  Bg7 {[%clk 0:02:48]} 6. c3 {[%clk 0:02:57]}  e5 {[%clk 0:02:44]} 7. O-O {[%clk 0:02:44]}  d6 {[%clk 0:02:43]} 8. a3 {[%clk 0:02:42]}  Nf6 {[%clk 0:02:41]} 9. b4 {[%clk 0:02:42]}  O-O {[%clk 0:02:38]} 10. d3 {[%clk 0:02:42]}  Be6 {[%clk 0:02:35]} 11. Rd1 {[%clk 0:02:38]}  a6 {[%clk 0:02:33]} 12. Bb2 {[%clk 0:02:31]}  b5 {[%clk 0:02:28]} 13. Nbd2 {[%clk 0:02:25]}  Nd7 {[%clk 0:02:25]} 14. Qe3 {[%clk 0:02:17]}  Nb6 {[%clk 0:02:15]} 15. Rac1 {[%clk 0:02:09]}  a5 {[%clk 0:02:06]} 16. bxc5 {[%clk 0:01:44]}  Na4 {[%clk 0:02:04]} 17. Ba1 {[%clk 0:01:42]}  dxc5 {[%clk 0:02:02]} 18. Bf1 {[%clk 0:01:28]}  Qd7 {[%clk 0:01:57]} 19. Ng5 {[%clk 0:01:24]}  Bh6 {[%clk 0:01:55]} 20. f4 {[%clk 0:01:17]}  Bg4 {[%clk 0:01:52]} 21. Re1 {[%clk 0:01:14]}  f6 {[%clk 0:01:50]} 22. h3 {[%clk 0:00:59]}  exf4 {[%clk 0:01:36]} 23. gxf4 {[%clk 0:00:57]}  fxg5 {[%clk 0:01:35]} 24. fxg5 {[%clk 0:00:57]}  Bg7 {[%clk 0:01:33]} 25. hxg4 {[%clk 0:00:53]}  Qxg4+ {[%clk 0:01:33]} 26. Bg2 {[%clk 0:00:53]}  Rad8 {[%clk 0:01:30]} 27. Nf3 {[%clk 0:00:48]}  Ne5 {[%clk 0:01:23]} 28. Nh2 {[%clk 0:00:37]}  Qh4 {[%clk 0:01:20]} 29. Rcd1 {[%clk 0:00:12]}  Nxd3 {[%clk 0:01:13]} 30. Rf1 {[%clk 0:00:12]}  c4 {[%clk 0:01:10]} 31. Nf3 {[%clk 0:00:08]}  Qg3 {[%clk 0:01:06]} 32. Rd2 {[%clk 0:00:08]}  Be5 {[%clk 0:01:04]} 33. Re2 {[%clk 0:00:05]}  Bf4 {[%clk 0:01:02]} 34. Qa7 {[%clk 0:00:05]}  Ne5 {[%clk 0:00:59]} 35. Qe7 {[%clk 0:00:01]}  Nxf3+ {[%clk 0:00:57]} 36. Rxf3 {[%clk 0:00:02]}  Rd1+ {[%clk 0:00:55]} 37. Rf1 {[%clk 0:00:02]}  Be3+ {[%clk 0:00:53]} 38. Rxe3 {[%clk 0:00:02]}  Rdxf1# {[%clk 0:00:50]} 0-1


[Site "https://www.chess.com"]

[Event "Titled Tuesday Blitz December 14 2021"]
[White "Terry, Renato"]
[Black "Kilpatrick, Callum"]
[WhiteFideId "3803457"]
[BlackFideId "414425"]
[WhiteElo "2577"]
[BlackElo "2581"]
[Result "1-0"]
[Round "04"]
[TimeControl "180+1"]
[Date "2021.12.15"]
[WhiteClock "0:00:37"]
[BlackClock "0:00:06"]

1. e4 {[%clk 0:03:00]}  e5 {[%clk 0:01:42]} 2. Nf3 {[%clk 0:02:59]}  Nc6 {[%clk 0:01:42]} 3. c3 {[%clk 0:02:58]}  Nf6 {[%clk 0:01:43]} 4. d4 {[%clk 0:02:58]}  Nxe4 {[%clk 0:01:43]} 5. d5 {[%clk 0:02:58]}  Ne7 {[%clk 0:01:43]} 6. Nxe5 {[%clk 0:02:58]}  Ng6 {[%clk 0:01:44]} 7. Nxg6 {[%clk 0:02:57]}  hxg6 {[%clk 0:01:45]} 8. Bd3 {[%clk 0:02:57]}  Nc5 {[%clk 0:01:44]} 9. O-O {[%clk 0:02:56]}  Nxd3 {[%clk 0:01:43]} 10. Qxd3 {[%clk 0:02:57]}  Be7 {[%clk 0:01:43]} 11. Re1 {[%clk 0:02:45]}  O-O {[%clk 0:01:38]} 12. Qe3 {[%clk 0:02:17]}  Bf6 {[%clk 0:01:33]} 13. d6 {[%clk 0:02:16]}  cxd6 {[%clk 0:01:31]} 14. Nd2 {[%clk 0:02:14]}  d5 {[%clk 0:01:31]} 15. Nf3 {[%clk 0:02:05]}  d6 {[%clk 0:01:30]} 16. Qd3 {[%clk 0:02:03]}  Be6 {[%clk 0:01:22]} 17. Be3 {[%clk 0:02:03]}  Re8 {[%clk 0:01:13]} 18. Nd4 {[%clk 0:01:52]}  Bxd4 {[%clk 0:01:08]} 19. Bxd4 {[%clk 0:01:48]}  Bf5 {[%clk 0:01:03]} 20. Qd2 {[%clk 0:01:48]}  Re4 {[%clk 0:00:59]} 21. f3 {[%clk 0:01:47]}  Rxe1+ {[%clk 0:00:52]} 22. Rxe1 {[%clk 0:01:48]}  Qd7 {[%clk 0:00:48]} 23. Qe3 {[%clk 0:01:45]}  b6 {[%clk 0:00:27]} 24. g4 {[%clk 0:01:35]}  Be6 {[%clk 0:00:27]} 25. Qg5 {[%clk 0:01:35]}  Qd8 {[%clk 0:00:22]} 26. Qf4 {[%clk 0:01:32]}  Qh4 {[%clk 0:00:20]} 27. Re2 {[%clk 0:01:27]}  Re8 {[%clk 0:00:17]} 28. Qxd6 {[%clk 0:01:25]}  Qg5 {[%clk 0:00:17]} 29. Kg2 {[%clk 0:01:13]}  Rd8 {[%clk 0:00:14]} 30. Qc7 {[%clk 0:01:10]}  Rc8 {[%clk 0:00:14]} 31. Qxa7 {[%clk 0:00:50]}  Bxg4 {[%clk 0:00:11]} 32. fxg4 {[%clk 0:00:51]}  Qxg4+ {[%clk 0:00:12]} 33. Kf1 {[%clk 0:00:51]}  Qf3+ {[%clk 0:00:12]} 34. Ke1 {[%clk 0:00:45]}  g5 {[%clk 0:00:08]} 35. Qd7 {[%clk 0:00:37]}  Ra8 {[%clk 0:00:07]} 36. Re8+ {[%clk 0:00:36]}  Rxe8+ {[%clk 0:00:08]} 37. Qxe8+ {[%clk 0:00:37]}  Kh7 {[%clk 0:00:08]} 38. Qe2 {[%clk 0:00:37]}  Qf5 {[%clk 0:00:08]} 39. Kd2 {[%clk 0:00:37]}  g4 {[%clk 0:00:08]} 40. Qd3 {[%clk 0:00:37]}  Kg6 {[%clk 0:00:05]} 41. Bxb6 {[%clk 0:00:37]}  Kg5 {[%clk 0:00:05]} 42. Qxf5+ {[%clk 0:00:36]}  Kxf5 {[%clk 0:00:05]} 43. a4 {[%clk 0:00:37]}  Ke4 {[%clk 0:00:06]} 44. a5 {[%clk 0:00:37]} 1-0


[Site "https://www.chess.com"]

[Event "Titled Tuesday Blitz December 14 2021"]
[White "Tsydypov, Zhamsaran"]
[Black "Mitrabha, Guha"]
[WhiteFideId "4108566"]
[BlackFideId "5057000"]
[WhiteElo "2942"]
[BlackElo "2774"]
[Result "1-0"]
[Round "04"]
[TimeControl "180+1"]
[Date "2021.12.14"]
[WhiteClock "0:02:05"]
[BlackClock "0:00:55"]

1. Nf3 {[%clk 0:03:00]}  Nf6 {[%clk 0:02:42]} 2. c4 {[%clk 0:03:00]}  c5 {[%clk 0:02:42]} 3. b3 {[%clk 0:02:58]}  Nc6 {[%clk 0:02:42]} 4. Bb2 {[%clk 0:02:58]}  g6 {[%clk 0:02:42]} 5. g3 {[%clk 0:02:57]}  Bg7 {[%clk 0:02:38]} 6. Bg2 {[%clk 0:02:57]}  O-O {[%clk 0:02:37]} 7. O-O {[%clk 0:02:57]}  b6 {[%clk 0:02:27]} 8. d4 {[%clk 0:02:53]}  cxd4 {[%clk 0:02:26]} 9. Nxd4 {[%clk 0:02:52]}  Bb7 {[%clk 0:02:25]} 10. Nc3 {[%clk 0:02:50]}  Qb8 {[%clk 0:02:19]} 11. Nc2 {[%clk 0:02:49]}  Rd8 {[%clk 0:02:08]} 12. e4 {[%clk 0:02:49]}  e6 {[%clk 0:02:06]} 13. Ne3 {[%clk 0:02:48]}  Ne7 {[%clk 0:01:50]} 14. Ba3 {[%clk 0:02:44]}  d6 {[%clk 0:01:49]} 15. Rc1 {[%clk 0:02:38]}  a6 {[%clk 0:01:47]} 16. Qe2 {[%clk 0:02:37]}  b5 {[%clk 0:01:31]} 17. e5 {[%clk 0:02:36]}  Bxg2 {[%clk 0:01:22]} 18. Nxg2 {[%clk 0:02:33]}  Ne8 {[%clk 0:01:21]} 19. exd6 {[%clk 0:02:33]}  Nxd6 {[%clk 0:01:21]} 20. cxb5 {[%clk 0:02:21]}  Bxc3 {[%clk 0:01:16]} 21. Rxc3 {[%clk 0:02:21]}  Nxb5 {[%clk 0:01:11]} 22. Bxe7 {[%clk 0:02:13]}  Nxc3 {[%clk 0:01:11]} 23. Qf3 {[%clk 0:02:07]}  Rc8 {[%clk 0:01:04]} 24. Ne3 {[%clk 0:02:07]}  Qe5 {[%clk 0:00:58]} 25. Ng4 {[%clk 0:02:05]}  Qf5 {[%clk 0:00:55]} 26. Nh6+ {[%clk 0:02:05]} 1-0


[Site "https://www.chess.com"]

[Event "Titled Tuesday Blitz December 14 2021"]
[White "Vantika, Agrawal"]
[Black "Xiong, Jeffery"]
[WhiteFideId "25050389"]
[BlackFideId "2047640"]
[WhiteElo "1917"]
[BlackElo "2727"]
[Result "0-1"]
[Round "04"]
[TimeControl "180+1"]
[Date "2021.12.14"]
[WhiteClock "0:00:02"]
[BlackClock "0:00:19"]

1. d4 {[%clk 0:02:59]}  Nf6 {[%clk 0:03:00]} 2. c4 {[%clk 0:02:59]}  e6 {[%clk 0:03:00]} 3. g3 {[%clk 0:02:58]}  c5 {[%clk 0:02:50]} 4. d5 {[%clk 0:02:58]}  exd5 {[%clk 0:02:51]} 5. cxd5 {[%clk 0:02:59]}  b5 {[%clk 0:02:52]} 6. e4 {[%clk 0:02:50]}  Nxe4 {[%clk 0:02:52]} 7. Bg2 {[%clk 0:02:49]}  Nd6 {[%clk 0:02:51]} 8. Nf3 {[%clk 0:02:48]}  Be7 {[%clk 0:02:51]} 9. O-O {[%clk 0:02:48]}  O-O {[%clk 0:02:51]} 10. Bf4 {[%clk 0:02:48]}  Nf5 {[%clk 0:02:46]} 11. d6 {[%clk 0:02:41]}  Bf6 {[%clk 0:02:46]} 12. Ne5 {[%clk 0:02:31]}  Bxe5 {[%clk 0:02:45]} 13. Bxe5 {[%clk 0:02:31]}  Nc6 {[%clk 0:02:45]} 14. Bf4 {[%clk 0:02:14]}  Bb7 {[%clk 0:02:44]} 15. Nc3 {[%clk 0:02:14]}  Rb8 {[%clk 0:02:42]} 16. Nxb5 {[%clk 0:01:42]}  Ncd4 {[%clk 0:02:42]} 17. Nxd4 {[%clk 0:01:36]}  Nxd4 {[%clk 0:02:43]} 18. Bxb7 {[%clk 0:01:29]}  Rxb7 {[%clk 0:02:43]} 19. Be5 {[%clk 0:01:20]}  Ne6 {[%clk 0:02:21]} 20. Re1 {[%clk 0:01:18]}  Rb6 {[%clk 0:02:19]} 21. Rc1 {[%clk 0:01:18]}  Qa8 {[%clk 0:02:19]} 22. h4 {[%clk 0:01:14]}  Qc6 {[%clk 0:02:10]} 23. Re3 {[%clk 0:00:39]}  a5 {[%clk 0:01:47]} 24. Rd3 {[%clk 0:00:39]}  a4 {[%clk 0:01:46]} 25. Bc3 {[%clk 0:00:37]}  Re8 {[%clk 0:01:43]} 26. a3 {[%clk 0:00:36]}  h6 {[%clk 0:01:37]} 27. Qg4 {[%clk 0:00:36]}  c4 {[%clk 0:00:52]} 28. Re3 {[%clk 0:00:33]}  g6 {[%clk 0:00:50]} 29. h5 {[%clk 0:00:31]}  Rb5 {[%clk 0:00:31]} 30. hxg6 {[%clk 0:00:30]}  Rg5 {[%clk 0:00:32]} 31. gxf7+ {[%clk 0:00:29]}  Kxf7 {[%clk 0:00:32]} 32. Qf3+ {[%clk 0:00:20]}  Qxf3 {[%clk 0:00:32]} 33. Rxf3+ {[%clk 0:00:21]}  Kg8 {[%clk 0:00:33]} 34. Re1 {[%clk 0:00:20]}  Ng7 {[%clk 0:00:31]} 35. Rf4 {[%clk 0:00:15]}  Rxe1+ {[%clk 0:00:27]} 36. Bxe1 {[%clk 0:00:16]}  Rc5 {[%clk 0:00:27]} 37. Bb4 {[%clk 0:00:16]}  Rc8 {[%clk 0:00:27]} 38. Rf6 {[%clk 0:00:15]}  h5 {[%clk 0:00:27]} 39. Rf4 {[%clk 0:00:13]}  Ne6 {[%clk 0:00:27]} 40. Rf5 {[%clk 0:00:13]}  Ng7 {[%clk 0:00:27]} 41. Rg5 {[%clk 0:00:12]}  Kf7 {[%clk 0:00:26]} 42. Ra5 {[%clk 0:00:12]}  Ke6 {[%clk 0:00:23]} 43. Rxa4 {[%clk 0:00:13]}  Nf5 {[%clk 0:00:24]} 44. Ra5 {[%clk 0:00:12]}  h4 {[%clk 0:00:24]} 45. gxh4 {[%clk 0:00:12]}  Nxh4 {[%clk 0:00:25]} 46. Kf1 {[%clk 0:00:12]}  Nf3 {[%clk 0:00:24]} 47. Rh5 {[%clk 0:00:11]}  Rg8 {[%clk 0:00:21]} 48. Ke2 {[%clk 0:00:10]}  Nd4+ {[%clk 0:00:21]} 49. Kd2 {[%clk 0:00:09]}  Rg2 {[%clk 0:00:17]} 50. Ke3 {[%clk 0:00:09]}  Nf5+ {[%clk 0:00:17]} 51. Kf3 {[%clk 0:00:09]}  Rg1 {[%clk 0:00:18]} 52. Rh8 {[%clk 0:00:07]}  Kd5 {[%clk 0:00:18]} 53. Rh5 {[%clk 0:00:07]}  Ke6 {[%clk 0:00:18]} 54. Rh8 {[%clk 0:00:07]}  Kd5 {[%clk 0:00:18]} 55. Rd8 {[%clk 0:00:07]}  Nd4+ {[%clk 0:00:18]} 56. Ke3 {[%clk 0:00:07]}  Rg7 {[%clk 0:00:18]} 57. a4 {[%clk 0:00:06]}  Nc6 {[%clk 0:00:18]} 58. Rc8 {[%clk 0:00:02]}  Nxb4 {[%clk 0:00:18]} 59. a5 {[%clk 0:00:02]}  Rg6 {[%clk 0:00:17]} 60. f4 {[%clk 0:00:02]}  Re6+ {[%clk 0:00:17]} 61. Kf3 {[%clk 0:00:02]}  Rxd6 {[%clk 0:00:18]} 62. f5 {[%clk 0:00:02]}  Ra6 {[%clk 0:00:18]} 63. Kf4 {[%clk 0:00:02]}  Nd3+ {[%clk 0:00:17]} 64. Kg5 {[%clk 0:00:03]}  Rxa5 {[%clk 0:00:18]} 65. f6 {[%clk 0:00:03]}  Ke6+ {[%clk 0:00:19]} 66. Kg6 {[%clk 0:00:03]}  Nf4+ {[%clk 0:00:20]} 67. Kg7 {[%clk 0:00:03]}  Rg5+ {[%clk 0:00:20]} 68. Kh7 {[%clk 0:00:02]}  Kf7 {[%clk 0:00:19]} 69. Rxc4 {[%clk 0:00:02]}  Rh5# {[%clk 0:00:19]} 0-1


[Site "https://www.chess.com"]

[Event "Titled Tuesday Blitz December 14 2021"]
[White "Weetik, Vjacheslav"]
[Black "Vidit, Santosh Gujrathi"]
[WhiteFideId "4153472"]
[BlackFideId "5029465"]
[WhiteElo "2469"]
[BlackElo "2628"]
[Result "0-1"]
[Round "04"]
[TimeControl "180+1"]
[Date "2021.12.14"]
[WhiteClock "0:00:02"]
[BlackClock "0:00:15"]

1. d4 {[%clk 0:02:56]}  Nf6 {[%clk 0:02:59]} 2. Bf4 {[%clk 0:02:55]}  e6 {[%clk 0:02:54]} 3. e3 {[%clk 0:02:55]}  c5 {[%clk 0:02:54]} 4. c3 {[%clk 0:02:54]}  b6 {[%clk 0:02:54]} 5. Nf3 {[%clk 0:02:52]}  Be7 {[%clk 0:02:53]} 6. h3 {[%clk 0:02:52]}  O-O {[%clk 0:02:52]} 7. a4 {[%clk 0:02:52]}  Bb7 {[%clk 0:02:50]} 8. Be2 {[%clk 0:02:51]}  d6 {[%clk 0:02:44]} 9. O-O {[%clk 0:02:50]}  a6 {[%clk 0:02:44]} 10. Bh2 {[%clk 0:02:49]}  Nbd7 {[%clk 0:02:44]} 11. Na3 {[%clk 0:02:47]}  Qc7 {[%clk 0:02:39]} 12. Re1 {[%clk 0:02:46]}  Rfd8 {[%clk 0:02:39]} 13. Bf1 {[%clk 0:02:37]}  Bc6 {[%clk 0:02:34]} 14. Nd2 {[%clk 0:02:34]}  Qb7 {[%clk 0:02:29]} 15. Nac4 {[%clk 0:02:21]}  Qc7 {[%clk 0:02:15]} 16. e4 {[%clk 0:02:08]}  e5 {[%clk 0:01:47]} 17. d5 {[%clk 0:01:48]}  Bb7 {[%clk 0:01:46]} 18. b4 {[%clk 0:01:48]}  cxb4 {[%clk 0:01:38]} 19. cxb4 {[%clk 0:01:48]}  Rac8 {[%clk 0:01:39]} 20. a5 {[%clk 0:01:17]}  b5 {[%clk 0:01:36]} 21. Ne3 {[%clk 0:01:18]}  Qb8 {[%clk 0:01:34]} 22. Bd3 {[%clk 0:01:10]}  g6 {[%clk 0:00:44]} 23. g4 {[%clk 0:01:00]}  Bf8 {[%clk 0:00:43]} 24. Be2 {[%clk 0:00:54]}  Bh6 {[%clk 0:00:40]} 25. Bd3 {[%clk 0:00:47]}  Rc3 {[%clk 0:00:39]} 26. Qe2 {[%clk 0:00:45]}  Rdc8 {[%clk 0:00:38]} 27. Rad1 {[%clk 0:00:42]}  Qa7 {[%clk 0:00:38]} 28. Nb1 {[%clk 0:00:41]}  R3c7 {[%clk 0:00:37]} 29. h4 {[%clk 0:00:40]}  Bf4 {[%clk 0:00:35]} 30. Kg2 {[%clk 0:00:32]}  h6 {[%clk 0:00:31]} 31. Bg3 {[%clk 0:00:30]}  Nh7 {[%clk 0:00:23]} 32. Qd2 {[%clk 0:00:29]}  Ndf6 {[%clk 0:00:22]} 33. Rc1 {[%clk 0:00:16]}  Bxe3 {[%clk 0:00:19]} 34. fxe3 {[%clk 0:00:16]}  Rxc1 {[%clk 0:00:18]} 35. Rxc1 {[%clk 0:00:16]}  Nxg4 {[%clk 0:00:18]} 36. Nc3 {[%clk 0:00:11]}  Qxe3 {[%clk 0:00:17]} 37. Qxe3 {[%clk 0:00:09]}  Nxe3+ {[%clk 0:00:18]} 38. Kg1 {[%clk 0:00:08]}  Nf6 {[%clk 0:00:16]} 39. Ne2 {[%clk 0:00:05]}  Rxc1+ {[%clk 0:00:15]} 40. Nxc1 {[%clk 0:00:06]}  Kf8 {[%clk 0:00:14]} 41. Kf2 {[%clk 0:00:05]}  Nc4 {[%clk 0:00:13]} 42. Nb3 {[%clk 0:00:04]}  Ke7 {[%clk 0:00:13]} 43. Ke2 {[%clk 0:00:04]}  Bc8 {[%clk 0:00:13]} 44. Bf2 {[%clk 0:00:04]}  Bg4+ {[%clk 0:00:13]} 45. Ke1 {[%clk 0:00:04]}  Bf3 {[%clk 0:00:13]} 46. Bxc4 {[%clk 0:00:04]}  bxc4 {[%clk 0:00:14]} 47. Nd2 {[%clk 0:00:04]}  Bxe4 {[%clk 0:00:15]} 48. Nxc4 {[%clk 0:00:04]}  Bxd5 {[%clk 0:00:15]} 49. Nb6 {[%clk 0:00:05]}  Bc6 {[%clk 0:00:15]} 50. Be3 {[%clk 0:00:01]}  Ng4 {[%clk 0:00:15]} 51. Bd2 {[%clk 0:00:01]}  Ke6 {[%clk 0:00:15]} 52. Ke2 {[%clk 0:00:01]}  f5 {[%clk 0:00:16]} 53. Kd3 {[%clk 0:00:02]}  f4 {[%clk 0:00:16]} 54. Kc3 {[%clk 0:00:02]}  f3 {[%clk 0:00:16]} 55. Kd3 {[%clk 0:00:02]}  Bb5+ {[%clk 0:00:16]} 56. Ke4 {[%clk 0:00:02]}  f2 {[%clk 0:00:15]} 0-1


[Site "https://www.chess.com"]